Workbook

Sheet Bilans
BB1: A. Objaśnienie - wykazane w bilansie wartości aktywów trwałych i obrotowych są pomniejszone odpowiednio o umorzenie i odpisy aktualizujące. | BC1: A. Objaśnienie - wykazane w bilansie wartości aktywów trwałych i obrotowych są pomniejszone odpowiednio o umorzenie i odpisy aktualizujące. | BD1: A. Objaśnienie - wykazane w bilansie wartości aktywów trwałych i obrotowych są pomniejszone odpowiednio o umorzenie i odpisy aktualizujące. | BE1: A. Objaśnienie - wykazane w bilansie wartości aktywów trwałych i obrotowych są pomniejszone odpowiednio o umorzenie i odpisy aktualizujące. | BF1: A. Objaśnienie - wykazane w bilansie wartości aktywów trwałych i obrotowych są pomniejszone odpowiednio o umorzenie i odpisy aktualizujące. | BG1: A. Objaśnienie - wykazane w bilansie wartości aktywów trwałych i obrotowych są pomniejszone odpowiednio o umorzenie i odpisy aktualizujące. | BH1: A. Objaśnienie - wykazane w bilansie wartości aktywów trwałych i obrotowych są pomniejszone odpowiednio o umorzenie i odpisy aktualizujące. | BI1: A. Objaśnienie - wykazane w bilansie wartości aktywów trwałych i obrotowych są pomniejszone odpowiednio o umorzenie i odpisy aktualizujące.
A3: Nazwa i adres | C3: BILANS | E3: Adresat | BB3: B. Informacje uzupełniające istotne dla oceny rzetelności i przejrzystości sytuacji finansowej i majątkowej: | BC3: B. Informacje uzupełniające istotne dla oceny rzetelności i przejrzystości sytuacji finansowej i majątkowej: | BD3: B. Informacje uzupełniające istotne dla oceny rzetelności i przejrzystości sytuacji finansowej i majątkowej: | BE3: B. Informacje uzupełniające istotne dla oceny rzetelności i przejrzystości sytuacji finansowej i majątkowej: | BF3: B. Informacje uzupełniające istotne dla oceny rzetelności i przejrzystości sytuacji finansowej i majątkowej: | BG3: B. Informacje uzupełniające istotne dla oceny rzetelności i przejrzystości sytuacji finansowej i majątkowej: | BH3: B. Informacje uzupełniające istotne dla oceny rzetelności i przejrzystości sytuacji finansowej i majątkowej: | BI3: B. Informacje uzupełniające istotne dla oceny rzetelności i przejrzystości sytuacji finansowej i majątkowej:
A4: jednostki sprawozdawczej
A5: Ministerstwo Klimatu i Środowiska, ul. Wawelska 52/54, 00-922 Warszawa | C5: jednostki budżetowej | E5: Ministerstwo Finansów, Funduszy i Polityki Regionalnej, ul. Świętokrzyska 12, 00-916 Warszawa
A9: ……………………………………
A10: Numer identyfikacyjny REGON | C10: 2020-12-31 | E10: …………………………………...…………..
A11: 001064858
A12: AKTYWA | B12: Stan na początek roku | C12: Stan na koniec roku | D12: PASYWA | F12: Stan na początek roku | G12: Stan na koniec roku
A13: A. Aktywa trwałe | B13: =B14+B15+B25+B26+B30 -> 882084773.9 | C13: =C14+C15+C25+C26+C30 -> 1060568799 | D13: A. Fundusze | F13: =F14+F15+F18+F19 -> 477138993.1 | G13: =G14+G15+G18+G19 -> 589102784.5
A14: I. Wartości niematerialne i prawne | B14: 10235536.92 | C14: 15447929.72 | D14: I. Fundusz jednostki | F14: -4528882740 | G14: -1.137599408e+10
A15: II. Rzeczowe aktywa trwałe | B15: =B16+B23+B24 -> 299737293.1 | C15: =C16+C23+C24 -> 367093966.3 | D15: II. Wynik finansowy netto (+,-) | F15: =F16+F17 -> 5006021733 | G15: =G16+G17 -> 1.196509686e+10
A16: 1. Środki trwałe | B16: =B17+B19+B20+B21+B22 -> 227899769.5 | C16: =C17+C19+C20+C21+C22 -> 348427318.7 | D16: 1. Zysk netto (+) | F16: 5461632117 | G16: 1.245059621e+10
A17: 1.1. Grunty | B17: 32266535.48 | C17: 43212190.79 | D17: 2. Strata netto (-) | F17: -455610384.8 | G17: -485499350.1
A18: 1.1.1. Grunty stanowiące własność jednostki samorządu terytorialnego, przekazane w użytkowanie wieczyste innym podmiotom | B18: 0 | C18: 0 | D18: III. Odpisy z wyniku finansowego (nadwyżka środków obrotowych) (-) | F18: 0 | G18: 0
A19: 1.2. Budynki, lokale i obiekty inżynierii lądowej i wodnej | B19: 126232398.5 | C19: 168314942.8 | D19: IV. Fundusz mienia zlikwidowanych jednostek | F19: 0 | G19: 0
A20: 1.3. Urządzenia techniczne i maszyny | B20: 12004149.67 | C20: 17232015.33 | D20: B. Fundusze placówek | F20: 0 | G20: 0
A21: 1.4. Środki transportu | B21: 12381935.88 | C21: 33871845.76 | D21: C. Państwowe fundusze celowe | F21: 0 | G21: 0
A22: 1.5. Inne środki trwałe | B22: 45014749.94 | C22: 85796323.96 | D22: D. Zobowiązania i rezerwy na zobowiązania | F22: =F23+F24+F35+F36 -> 1030671164 | G22: =G23+G24+G35+G36 -> 4529598288
A23: 2. Środki trwałe w budowie (inwestycje) | B23: 71837523.64 | C23: 18666647.64 | D23: I. Zobowiązania długoterminowe | F23: 0 | G23: 0
A24: 3. Zaliczki na środki trwałe w budowie (inwestycje) | B24: 0 | C24: 0 | D24: II. Zobowiązania krótkoterminowe | F24: =F25+F26+F27+F28+F29+F30+F31+F32 -> 334074518.3 | G24: =G25+G26+G27+G28+G29+G30+G31+G32 -> 3702464233
A25: III. Należności długoterminowe | B25: 572111943.9 | C25: 678026902.5 | D25: 1. Zobowiązania z tytułu dostaw i usług | F25: 5771821.41 | G25: 24431158.28
A26: IV. Długoterminowe aktywa finansowe | B26: =B27+B28+B29 -> 0 | C26: 0 | D26: 2. Zobowiązania wobec budżetów | F26: 184713.38 | G26: 193211
A27: 1. Akcje i udziały | B27: 0 | C27: 0 | D27: 3. Zobowiązania z tytułu ubezpieczeń i innych świadczeń | F27: 3788877.93 | G27: 4571065.02
A28: 2. Inne papiery wartościowe | B28: 0 | C28: 0 | D28: 4. Zobowiązania z tytułu wynagrodzeń | F28: 17133432.98 | G28: 19725775.92
A29: 3. Inne długoterminowe aktywa finansowe | B29: 0 | C29: 0 | D29: 5. Pozostałe zobowiązania | F29: 9985974.19 | G29: 3187496543
A30: V. Wartość mienia zlikwidowanych jednostek | B30: 0 | C30: 0 | D30: 6. Sumy obce (depozytowe, zabezpieczenie wykonania umów) | F30: 12463601.59 | G30: 10420250.09
A31: B. Aktywa obrotowe | B31: =B32+B37+B43+B51 -> 625725383.7 | C31: =C32+C37+C43+C51 -> 4058132274 | D31: 7. Rozliczenia z tytułu środków na wydatki budżetowe i z tytułu dochodów budżetowych | F31: 280799013.7 | G31: 399309697.9
A32: I. Zapasy | B32: =B33+B34+B35+B36 -> 552372.74 | C32: =C33+C34+C35+C36 -> 715334.2 | D32: 8. Fundusze specjalne | F32: 3947083.15 | G32: 56316531.26
A33: 1. Materiały | B33: 536047.1 | C33: 694148.1 | D33: 8.1. Zakładowy Fundusz Świadczeń Socjalnych | F33: 3816087.11 | G33: 4284980.95
A34: 2. Półprodukty i produkty w toku | B34: 0 | C34: 0 | D34: 8.2. Inne fundusze | F34: 130996.04 | G34: 52031550.31
A35: 3. Produkty gotowe | B35: 0 | C35: 0 | D35: III. Rezerwy na zobowiązania | F35: 77820369.86 | G35: 93752587.18
A36: 4. Towary | B36: 16325.64 | C36: 21186.1 | D36: IV. Rozliczenia międzyokresowe | F36: 618776276.3 | G36: 733381468
A37: II. Należności krótkoterminowe | B37: =B38+B39+B40+B41+B42 -> 598066874.7 | C37: =C38+C39+C40+C41+C42 -> 3969793948
A38: 1. Należności z tytułu dostaw i usług | B38: 44501410.06 | C38: 53168275.94
A39: 2. Należności od budżetów | B39: 2729.02 | C39: 9727.28
A40: 3. Należności z tytułu ubezpieczeń i innych świadczeń | B40: 21826.66 | C40: 20409.17
A41: 4. Pozostałe należności | B41: 3932187.47 | C41: 3138794259
A42: 5. Rozliczenia z tytułu środków na wydatki budżetowe i z tytułu dochodów budżetowych | B42: 549608721.5 | C42: 777801276.8
A43: III. Krótkoterminowe aktywa finansowe | B43: =B44+B45+B46+B47+B48+B49+B50 -> 24900953.21 | C43: =C44+C45+C46+C47+C48+C49+C50 -> 67290279.91
A44: 1. Środki pieniężne w kasie | B44: 0 | C44: 0
A45: 2. Środki pieniężne na rachunkach bankowych | B45: 24826486.71 | C45: 15532775.19
A46: 3. Środki pieniężne państwowego funduszu celowego | B46: 0 | C46: 51740729.72
A47: 4. Inne środki pieniężne | B47: 74466.5 | C47: 16775
A48: 5. Akcje lub udziały | B48: 0 | C48: 0
A49: 6. Inne papiery wartościowe | B49: 0 | C49: 0
A50: 7. Inne krótkoterminowe aktywa finansowe | B50: 0 | C50: 0
A51: IV. Rozliczenia międzyokresowe | B51: 2205182.97 | C51: 20332711.76
A52: Suma aktywów | B52: =B13+B31 -> 1507810158 | C52: =C13+C31 -> 5118701072 | D52: Suma pasywów | F52: =F13+F20+F21+F22 -> 1507810158 | G52: =G13+G20+G21+G22 -> 5118701072
A54: WR odjęto za r. 2020
A55: Naleznosci z tyt. Dos.i us | C55: -24403.12 | D55: Zobowiązania z tyt. dostaw i usług | G55: -29454.44
A56: Nalezności długoterminowe | C56: -5051.32

Sheet Headers (hidden)
AC1: 16469
AC2: 161
A3: Nazwa i adres | C3: BILANS | E3: Adresat | AC3: 93
A4: jednostki sprawozdawczej | AC4: 2008-01-01
C5: jednostki budżetowej | AC5: 2008-12-31
AC6: 2008
AC7: R
AC8: PJB
A9: …………………………………… | AC9: N
A10: Numer identyfikacyjny REGON | C10: 2018-12-31 | E10: …………………………………...…………..
A12: AKTYWA | B12: Stan na początek roku | C12: Stan na koniec roku | D12: PASYWA | F12: Stan na początek roku | G12: Stan na koniec roku

Sheet Footers (hidden)
A5: ................................................................. | E5: .................................................................
A6: Rola dla podpisu pierwszego | E6: Rola dla podpisu drugiego
A7: imię i nazwisko | E7: imię i nazwisko
A8: (data i godzina z pola audytowego) | E8: (data i godzina z pola audytowego)

Sheet Printer (hidden)
A3: Nazwa i adres | C3: BILANS | E3: Adresat
A4: jednostki sprawozdawczej
C5: jednostki budżetowej
A9: ……………………………………
A10: Numer identyfikacyjny REGON | C10: 2018-12-31 | E10: …………………………………...…………..
A12: AKTYWA | B12: Stan na początek roku | C12: Stan na koniec roku | D12: PASYWA | F12: Stan na początek roku | G12: Stan na koniec roku
A13: A. Aktywa trwałe | B13: 0 | C13: 0 | D13: A. Fundusze | F13: 0 | G13: 0
A14: I. Wartości niematerialne i prawne | B14: 0 | C14: 0 | D14: I. Fundusz jednostki | F14: 0 | G14: 0
A15: II. Rzeczowe aktywa trwałe | B15: 0 | C15: 0 | D15: II. Wynik finansowy netto (+,-) | F15: 0 | G15: 0
A16: 1. Środki trwałe | B16: 0 | C16: 0 | D16: 1. Zysk netto (+) | F16: 0 | G16: 0
A17: 1.1. Grunty | B17: 0 | C17: 0 | D17: 2. Strata netto (-) | F17: 0 | G17: 0
A18: 1.1.1. Grunty stanowiące własność jednostki samorządu terytorialnego, przekazane w użytkowanie wieczyste innym podmiotom | B18: 0 | C18: 0 | D18: III. Odpisy z wyniku finansowego (nadwyżka środków obrotowych) (-) | F18: 0 | G18: 0
A19: 1.2. Budynki, lokale i obiekty inżynierii lądowej i wodnej | B19: 0 | C19: 0 | D19: IV. Fundusz mienia zlikwidowanych jednostek | F19: 0 | G19: 0
A20: 1.3. Urządzenia techniczne i maszyny | B20: 0 | C20: 0 | D20: B. Fundusze placówek | F20: 0 | G20: 0
A21: 1.4. Środki transportu | B21: 0 | C21: 0 | D21: C. Państwowe fundusze celowe | F21: 0 | G21: 0
A22: 1.5. Inne środki trwałe | B22: 0 | C22: 0 | D22: D. Zobowiązania i rezerwy na zobowiązania | F22: 0 | G22: 0
A23: 2. Środki trwałe w budowie (inwestycje) | B23: 0 | C23: 0 | D23: I. Zobowiązania długoterminowe | F23: 0 | G23: 0
A24: 3. Zaliczki na środki trwałe w budowie (inwestycje) | B24: 0 | C24: 0 | D24: II. Zobowiązania krótkoterminowe | F24: 0 | G24: 0
A25: III. Należności długoterminowe | B25: 0 | C25: 0 | D25: 1. Zobowiązania z tytułu dostaw i usług | F25: 0 | G25: 0
A26: IV. Długoterminowe aktywa finansowe | B26: 0 | C26: 0 | D26: 2. Zobowiązania wobec budżetów | F26: 0 | G26: 0
A27: 1. Akcje i udziały | B27: 0 | C27: 0 | D27: 3. Zobowiązania z tytułu ubezpieczeń i innych świadczeń | F27: 0 | G27: 0
A28: 2. Inne papiery wartościowe | B28: 0 | C28: 0 | D28: 4. Zobowiązania z tytułu wynagrodzeń | F28: 0 | G28: 0
A29: 3. Inne długoterminowe aktywa finansowe | B29: 0 | C29: 0 | D29: 5. Pozostałe zobowiązania | F29: 0 | G29: 0
A30: V. Wartość mienia zlikwidowanych jednostek | B30: 0 | C30: 0 | D30: 6. Sumy obce (depozytowe, zabezpieczenie wykonania umów) | F30: 0 | G30: 0
A31: B. Aktywa obrotowe | B31: 0 | C31: 0 | D31: 7. Rozliczenia z tytułu środków na wydatki budżetowe i z tytułu dochodów budżetowych | F31: 0 | G31: 0
A32: I. Zapasy | B32: 0 | C32: 0 | D32: 8. Fundusze specjalne | F32: 0 | G32: 0
A33: 1. Materiały | B33: 0 | C33: 0 | D33: 8.1. Zakładowy Fundusz Świadczeń Socjalnych | F33: 0 | G33: 0
A34: 2. Półprodukty i produkty w toku | B34: 0 | C34: 0 | D34: 8.2. Inne fundusze | F34: 0 | G34: 0
A35: 3. Produkty gotowe | B35: 0 | C35: 0 | D35: III. Rezerwy na zobowiązania | F35: 0 | G35: 0
A36: 4. Towary | B36: 0 | C36: 0 | D36: IV. Rozliczenia międzyokresowe | F36: 0 | G36: 0
A37: II. Należności krótkoterminowe | B37: 0 | C37: 0
A38: 1. Należności z tytułu dostaw i usług | B38: 0 | C38: 0
A39: 2. Należności od budżetów | B39: 0 | C39: 0
A40: 3. Należności z tytułu ubezpieczeń i innych świadczeń | B40: 0 | C40: 0
A41: 4. Pozostałe należności | B41: 0 | C41: 0
A42: 5. Rozliczenia z tytułu środków na wydatki budżetowe i z tytułu dochodów budżetowych | B42: 0 | C42: 0
A43: III. Krótkoterminowe aktywa finansowe | B43: 0 | C43: 0
A44: 1. Środki pieniężne w kasie | B44: 0 | C44: 0
A45: 2. Środki pieniężne na rachunkach bankowych | B45: 0 | C45: 0
A46: 3. Środki pieniężne państwowego funduszu celowego | B46: 0 | C46: 0
A47: 4. Inne środki pieniężne | B47: 0 | C47: 0
A48: 5. Akcje lub udziały | B48: 0 | C48: 0
A49: 6. Inne papiery wartościowe | B49: 0 | C49: 0
A50: 7. Inne krótkoterminowe aktywa finansowe | B50: 0 | C50: 0
A51: IV. Rozliczenia międzyokresowe | B51: 0 | C51: 0
A52: Suma aktywów | B52: 0 | C52: 0 | D52: Suma pasywów | F52: 0 | G52: 0
A58: ................................................................. | E58: .................................................................
A59: Rola dla podpisu pierwszego | E59: Rola dla podpisu drugiego
A60: imię i nazwisko | E60: imię i nazwisko
A61: (data i godzina z pola audytowego) | E61: (data i godzina z pola audytowego)

Sheet Aux (hidden)
A1: -843 | B1: - | C1: 19
A2: BILANS.REP
A3: BILANS.REP.CPL
A4: BU
A5: 2018
A6: Y01.20189
A7: wer. 1.3 @ 2018-12-04 15:57:35
A8: 58 | B8: 58
B9: 53
B10: 53
A13: BILANS.POZ_TOP | B13: BILANS.POZ_TOP.10 | C13: A. Aktywa trwałe | H13: BILANS.POZ_BOTTOM | I13: BILANS.POZ_BOTTOM.10 | J13: A. Fundusze
A14: BILANS.POZ_TOP | B14: BILANS.POZ_TOP.11 | C14: I. Wartości niematerialne i prawne | H14: BILANS.POZ_BOTTOM | I14: BILANS.POZ_BOTTOM.11 | J14: I. Fundusz jednostki
A15: BILANS.POZ_TOP | B15: BILANS.POZ_TOP.12 | C15: II. Rzeczowe aktywa trwałe | H15: BILANS.POZ_BOTTOM | I15: BILANS.POZ_BOTTOM.12 | J15: II. Wynik finansowy netto (+,-)
A16: BILANS.POZ_TOP | B16: BILANS.POZ_TOP.13 | C16: 1. Środki trwałe | H16: BILANS.POZ_BOTTOM | I16: BILANS.POZ_BOTTOM.13 | J16: 1. Zysk netto (+)
A17: BILANS.POZ_TOP | B17: BILANS.POZ_TOP.14 | C17: 1.1. Grunty | H17: BILANS.POZ_BOTTOM | I17: BILANS.POZ_BOTTOM.14 | J17: 2. Strata netto (-)
A18: BILANS.POZ_TOP | B18: BILANS.POZ_TOP.48 | C18: 1.1.1. Grunty stanowiące własność jednostki samorządu terytorialnego, przekazane w użytkowanie wieczyste innym podmiotom | H18: BILANS.POZ_BOTTOM | I18: BILANS.POZ_BOTTOM.15 | J18: III. Odpisy z wyniku finansowego (nadwyżka środków obrotowych) (-)
A19: BILANS.POZ_TOP | B19: BILANS.POZ_TOP.15 | C19: 1.2. Budynki, lokale i obiekty inżynierii lądowej i wodnej | H19: BILANS.POZ_BOTTOM | I19: BILANS.POZ_BOTTOM.17 | J19: IV. Fundusz mienia zlikwidowanych jednostek
A20: BILANS.POZ_TOP | B20: BILANS.POZ_TOP.16 | C20: 1.3. Urządzenia techniczne i maszyny | H20: BILANS.POZ_BOTTOM | I20: BILANS.POZ_BOTTOM.36 | J20: B. Fundusze placówek
A21: BILANS.POZ_TOP | B21: BILANS.POZ_TOP.17 | C21: 1.4. Środki transportu | H21: BILANS.POZ_BOTTOM | I21: BILANS.POZ_BOTTOM.18 | J21: C. Państwowe fundusze celowe
A22: BILANS.POZ_TOP | B22: BILANS.POZ_TOP.18 | C22: 1.5. Inne środki trwałe | H22: BILANS.POZ_BOTTOM | I22: BILANS.POZ_BOTTOM.19 | J22: D. Zobowiązania i rezerwy na zobowiązania
A23: BILANS.POZ_TOP | B23: BILANS.POZ_TOP.19 | C23: 2. Środki trwałe w budowie (inwestycje) | H23: BILANS.POZ_BOTTOM | I23: BILANS.POZ_BOTTOM.20 | J23: I. Zobowiązania długoterminowe
A24: BILANS.POZ_TOP | B24: BILANS.POZ_TOP.20 | C24: 3. Zaliczki na środki trwałe w budowie (inwestycje) | H24: BILANS.POZ_BOTTOM | I24: BILANS.POZ_BOTTOM.21 | J24: II. Zobowiązania krótkoterminowe
A25: BILANS.POZ_TOP | B25: BILANS.POZ_TOP.21 | C25: III. Należności długoterminowe | H25: BILANS.POZ_BOTTOM | I25: BILANS.POZ_BOTTOM.22 | J25: 1. Zobowiązania z tytułu dostaw i usług
A26: BILANS.POZ_TOP | B26: BILANS.POZ_TOP.22 | C26: IV. Długoterminowe aktywa finansowe | H26: BILANS.POZ_BOTTOM | I26: BILANS.POZ_BOTTOM.23 | J26: 2. Zobowiązania wobec budżetów
A27: BILANS.POZ_TOP | B27: BILANS.POZ_TOP.23 | C27: 1. Akcje i udziały | H27: BILANS.POZ_BOTTOM | I27: BILANS.POZ_BOTTOM.24 | J27: 3. Zobowiązania z tytułu ubezpieczeń i innych świadczeń
A28: BILANS.POZ_TOP | B28: BILANS.POZ_TOP.24 | C28: 2. Inne papiery wartościowe | H28: BILANS.POZ_BOTTOM | I28: BILANS.POZ_BOTTOM.25 | J28: 4. Zobowiązania z tytułu wynagrodzeń
A29: BILANS.POZ_TOP | B29: BILANS.POZ_TOP.25 | C29: 3. Inne długoterminowe aktywa finansowe | H29: BILANS.POZ_BOTTOM | I29: BILANS.POZ_BOTTOM.26 | J29: 5. Pozostałe zobowiązania
A30: BILANS.POZ_TOP | B30: BILANS.POZ_TOP.26 | C30: V. Wartość mienia zlikwidowanych jednostek | H30: BILANS.POZ_BOTTOM | I30: BILANS.POZ_BOTTOM.27 | J30: 6. Sumy obce (depozytowe, zabezpieczenie wykonania umów)
A31: BILANS.POZ_TOP | B31: BILANS.POZ_TOP.27 | C31: B. Aktywa obrotowe | H31: BILANS.POZ_BOTTOM | I31: BILANS.POZ_BOTTOM.28 | J31: 7. Rozliczenia z tytułu środków na wydatki budżetowe i z tytułu dochodów budżetowych
A32: BILANS.POZ_TOP | B32: BILANS.POZ_TOP.28 | C32: I. Zapasy | H32: BILANS.POZ_BOTTOM | I32: BILANS.POZ_BOTTOM.30 | J32: 8. Fundusze specjalne
A33: BILANS.POZ_TOP | B33: BILANS.POZ_TOP.29 | C33: 1. Materiały | H33: BILANS.POZ_BOTTOM | I33: BILANS.POZ_BOTTOM.31 | J33: 8.1. Zakładowy Fundusz Świadczeń Socjalnych
A34: BILANS.POZ_TOP | B34: BILANS.POZ_TOP.30 | C34: 2. Półprodukty i produkty w toku | H34: BILANS.POZ_BOTTOM | I34: BILANS.POZ_BOTTOM.32 | J34: 8.2. Inne fundusze
A35: BILANS.POZ_TOP | B35: BILANS.POZ_TOP.31 | C35: 3. Produkty gotowe | H35: BILANS.POZ_BOTTOM | I35: BILANS.POZ_BOTTOM.29 | J35: III. Rezerwy na zobowiązania
A36: BILANS.POZ_TOP | B36: BILANS.POZ_TOP.32 | C36: 4. Towary | H36: BILANS.POZ_BOTTOM | I36: BILANS.POZ_BOTTOM.33 | J36: IV. Rozliczenia międzyokresowe
A37: BILANS.POZ_TOP | B37: BILANS.POZ_TOP.33 | C37: II. Należności krótkoterminowe
A38: BILANS.POZ_TOP | B38: BILANS.POZ_TOP.34 | C38: 1. Należności z tytułu dostaw i usług
A39: BILANS.POZ_TOP | B39: BILANS.POZ_TOP.35 | C39: 2. Należności od budżetów
A40: BILANS.POZ_TOP | B40: BILANS.POZ_TOP.36 | C40: 3. Należności z tytułu ubezpieczeń i innych świadczeń
A41: BILANS.POZ_TOP | B41: BILANS.POZ_TOP.37 | C41: 4. Pozostałe należności
A42: BILANS.POZ_TOP | B42: BILANS.POZ_TOP.38 | C42: 5. Rozliczenia z tytułu środków na wydatki budżetowe i z tytułu dochodów budżetowych
A43: BILANS.POZ_TOP | B43: BILANS.POZ_TOP.39 | C43: III. Krótkoterminowe aktywa finansowe
A44: BILANS.POZ_TOP | B44: BILANS.POZ_TOP.40 | C44: 1. Środki pieniężne w kasie
A45: BILANS.POZ_TOP | B45: BILANS.POZ_TOP.41 | C45: 2. Środki pieniężne na rachunkach bankowych
A46: BILANS.POZ_TOP | B46: BILANS.POZ_TOP.42 | C46: 3. Środki pieniężne państwowego funduszu celowego
A47: BILANS.POZ_TOP | B47: BILANS.POZ_TOP.43 | C47: 4. Inne środki pieniężne
A48: BILANS.POZ_TOP | B48: BILANS.POZ_TOP.44 | C48: 5. Akcje lub udziały
A49: BILANS.POZ_TOP | B49: BILANS.POZ_TOP.45 | C49: 6. Inne papiery wartościowe
A50: BILANS.POZ_TOP | B50: BILANS.POZ_TOP.46 | C50: 7. Inne krótkoterminowe aktywa finansowe
A51: BILANS.POZ_TOP | B51: BILANS.POZ_TOP.47 | C51: IV. Rozliczenia międzyokresowe
A52: BILANS.POZ_TOP | B52: BILANS.POZ_TOP.SUM | C52: Suma aktywów | H52: BILANS.POZ_BOTTOM | I52: BILANS.POZ_BOTTOM.SUM | J52: Suma pasywów
